Cogmind - Beta 15 @@@ ROGUE MODE // 2025.05.13 @ 19:01:56 Player: Windjigo Result: Destroyed by DS-IJV(j) with Overtuned Pulse Rifle Performance ------------- Evolutions (0) 0 Regions Visited (3) 600 Robots Destroyed (9) 45 Value Destroyed (343) 343 Prototype IDs (7) 140 Alien Tech Used (0) 0 Bonus (800) 800 TOTAL SCORE: 1928 Bonus ------- Registered with UFD 300 Met Optimus in HQ 500 Cogmind --------- Core Integrity 0/250 Matter 208/300 Energy 155/160 System Corruption 0% Temperature Cool (41) Movement Treading (157) Location -8/Scraptown Parts ------- > --- POWER (1) -------- Light Fission Core > --- PROPULSION (2) --- Armored Treads Advanced Treads > --- UTILITY (2) ------ Large Storage Unit Advanced Targeting Computer > --- WEAPON (2) ------- Advanced Assault Cannon Magnetic Acceleration Cannon > --- INVENTORY (15) --- Subdweller Power Source Overtuned Treads Overtuned Titanium Leg Improved Titanium Leg Scrap Suit Improved Heat Sink Large Battery (200) Advanced Weight Redist. System Improved Sensor Array Experimental Signal Interpreter Makeshift Transmission Jammer Improved Grenade Launcher CPS Tube (2) Peak State ------------ > --- POWER ------------ Light Fission Core > --- PROPULSION ------- Titanium Leg Improved Titanium Leg > --- UTILITY ---------- Medium Storage Unit IFF Parser > --- WEAPON ----------- Advanced Assault Cannon Magnetic Acceleration Cannon > --- INVENTORY -------- Subdweller Power Source Improved Heat Sink Large Battery Advanced Weight Redist. System Improved Sensor Array Advanced Targeting Computer Medium Armor Plating Hardlight Generator Proton Missile Launcher CPS Tube [Rating: 29] Favorites ----------- Power Light Fission Core Engine Ion Engine Power Core Light Fission Core Propulsion Improved Titanium Leg Treads Light Treads Leg Improved Titanium Leg Utility Medium Storage Unit Device Improved Sensor Array Storage Medium Storage Unit Processor Advanced Targeting Computer Weapon Magnetic Acceleration Cannon Energy Gun Small Laser Energy Cannon Subdweller Beam Cannon Ballistic Gun Assault Rifle Ballistic Cannon Magnetic Acceleration Cannon Build | -11 -10 -10 -8 ------- Run | Yrd Mat Sub Scr Slots Evolved . | . . . . Power . | . . . . Propulsion . | . . . . Utility . | . . . . Weapon . | . . . . Parts Attached 30 | 6 2 7 15 Power 6 | 1 . 2 3 Engine 4 | 1 . 2 1 Core 2 | . . . 2 Reactor . | . . . . Propulsion 9 | 2 . 2 5 Treads 5 | 2 . . 3 Leg 4 | . . 2 2 Wheel . | . . . . Hover . | . . . . Flight . | . . . . Utility 8 | 1 1 1 5 Device 3 | . . 1 2 Storage 4 | 1 1 . 2 Processor 1 | . . . 1 Hackware . | . . . . Protection . | . . . . Artifact . | . . . . Weapon 7 | 2 1 2 2 Energy Gun 3 | 1 1 1 . Energy Cannon 1 | . . 1 . Ballistic Gun 1 | 1 . . . Ballistic Cannon 2 | . . . 2 Launcher . | . . . . Special Weapon . | . . . . Impact Weapon . | . . . . Slashing Weapon . | . . . . Piercing Weapon . | . . . . Special Melee Weapon . | . . . . Unidentified Prototypes . | . . . . Parts Lost 6 | . 3 3 . Power 2 | . 1 1 . Propulsion 2 | . . 2 . Utility . | . . . . Weapon 2 | . 2 . . Highest Loss Streak 3 | . 1 3 . To Critical Strikes . | . . . . Average Backups 7 | . . 3 9 Power . | . . 1 1 Propulsion . | . . 1 . Utility 4 | . . . 5 Weapon . | . . . . Tool/Special . | . . . . Unused Backups 17 | . . 1 16 Power . | . . . . Propulsion 2 | . . . 2 Utility 9 | . . . 9 Weapon 4 | . . 1 3 Tool/Special 2 | . . . 2 Average Slot Usage (%) 89 | . 76 89 91 Engine 5 | . 8 9 4 Core 7 | . . . 9 Treads 12 | . 28 24 8 Leg 14 | . . 3 18 Device 12 | . . 12 13 Storage 13 | . 13 14 14 Energy Gun 3 | . 15 14 . Energy Cannon 1 | . . 10 . Ballistic Cannon 15 | . . . 20 Peak Build Rating 29 | 6 6 10 29 Average Rating 19 | 4 5 8 22 On Entrance 5 | . 6 4 10 Naked Turns . | . . . . Heaviest Build 62 | 14 19 25 62 Greatest Support 42 | 40 40 40 42 Greatest Overweight (x) 10 | . . 8 10 Average Overweight (x) . | . . . . Largest Inventory Capacity 20 | 8 10 10 20 Average Capacity 11 | 6 9 10 11 Most Carried 14 | 3 2 5 14 Average Carried 7 | . . 3 9 Final Capacity 15 | 8 10 10 15 Final Carried 14 | . 2 2 14 Class Distribution -------------------- 76% | Mutant 14% | Scavenger-Mutant 9% | Derelict-Mutant Dominant Class ---------------- Mutant | -10/Materials Scavenger-Mutant | -10/Subcaves Mutant | -8/Scraptown Resources | -11 -10 -10 -8 ----------- Run | Yrd Mat Sub Scr Matter Collected 646 | 62 196 91 297 Remotely . | . . . . Salvage Created 360 | . 196 . 164 Parts 21 | . 6 . 15 Haulers Intercepted . | . . . . Recyclers Shooed . | . . . . Parts Field Recycled . | . . . . Retrieved Matter . | . . . . Parts Self-Destructed 4 | . . 4 . Prevented . | . . . . Kills | -11 -10 -10 -8 ------- Run | Yrd Mat Sub Scr Combat Hostiles Destroyed 8 | . 5 . 3 Guns 5 | . 5 . . Cannons 3 | . . . 3 Classes Destroyed 4 | . 1 . 3 Turret 1 | . . . 1 Grunt 5 | . 5 . . Federalist 1 | . . . 1 Scrapper 2 | . . . 2 Best Kill Streak 3 | . 2 . 3 Combat Bots Only 3 | . 2 . 3 Max Kills in Single Turn 1 | . 1 . 1 Gunslinging . | . . . . Exploded . | . . . . Melee . | . . . . Uniques/NPCs Destroyed . | . . . . Combat | -11 -10 -10 -8 -------- Run | Yrd Mat Sub Scr Hostile Shots Fired 125 | . 68 19 38 Missed 38 | . 14 9 15 Hits 87 | . 54 10 23 Projectile 87 | . 54 10 23 Critical Strikes 3 | . . 1 2 Damage Taken 1151 | . 659 269 223 Core 255 | . 152 47 56 Absorbed by Shields . | . . . . Core Remaining (%) 100 | 100 . . . Volleys Fired 36 | 1 19 4 12 Largest 2 | 2 2 2 2 Hottest 120 | 70 90 120 84 Shots Fired 69 | 2 37 6 24 Gun 43 | 2 37 4 . Cannon 26 | . . 2 24 Launcher . | . . . . Special . | . . . . Kinetic 42 | 1 17 . 24 Thermal 27 | 1 20 6 . Explosive . | . . . . Electromagnetic . | . . . . Robot Hit Streak 5 | . 5 4 4 Robot Miss Streak 3 | . 1 2 3 Penetration Max . | . . . . Secondary Targets . | . . . . Shots Hit Robots 41 | . 25 4 12 Core Hits 16 | . 11 . 5 Critical Kills . | . . . . Critical Parts Destroyed 1 | . 1 . . Critical Strikes 5 | . 3 . 2 Burn 2 | . 2 . . Destroy 1 | . 1 . . Blast 2 | . . . 2 Melee Attacks . | . . . . Impact . | . . . . Slashing . | . . . . Piercing . | . . . . Sneak Attacks . | . . . . Combat Hostiles . | . . . . Follow-up Attacks . | . . . . Damage Inflicted 672 | . 330 37 305 Guns 342 | . 330 12 . Cannons 330 | . . 25 305 Explosions . | . . . . Melee . | . . . . Ramming . | . . . . Kinetic 460 | . 155 . 305 Thermal 212 | . 175 37 . Explosive . | . . . . Electromagnetic . | . . . . Impact . | . . . . Slashing . | . . . . Piercing . | . . . . Highest Corruption . | . . . . Average Corruption . | . . . . Corruption Purged . | . . . . Corruption Blocked . | . . . . Overload Shots . | . . . . Overflow Damage 53 | . . . 53 Projectiles 53 | . . . 53 Explosions . | . . . . Melee . | . . . . Knockbacks 3 | . . . 3 Impact . | . . . . Kinetic 3 | . . . 3 Secondary . | . . . . Self-Inflicted Damage . | . . . . Shots . | . . . . Rammed . | . . . . Targets Rammed . | . . . . Kicked . | . . . . Crushed . | . . . . Highest Temperature 207 | 9 90 207 150 Average Temperature 51 | 6 26 108 72 Received Heat Transfer 852 | . 372 340 140 Siege Activations . | . . . . Martial Activations . | . . . . Shielding Activations . | . . . . Robots Disrupted . | . . . . Combat Hostiles . | . . . . Robots Corrupted . | . . . . Combat Hostiles . | . . . . Parts Fried . | . . . . Impact Corruptions . | . . . . Robots Melted . | . . . . Combat Hostiles . | . . . . Parts Melted 6 | . 6 . . Heat Transferred 728 | . 666 62 . Parts Sabotaged . | . . . . Parts Stolen . | . . . . Parts Stripped . | . . . . Power Chain Reactions . | . . . . Alert | -11 -10 -10 -8 ------- Run | Yrd Mat Sub Scr Maximum Alert Level . | . . . . Low Security (%) 100 | 100 100 . . Level 1 . | . . . . Level 2 . | . . . . Level 3 . | . . . . Level 4 . | . . . . Level 5 . | . . . . High Security . | . . . . Max Security . | . . . . Peak Influence 50 | . 50 . . Initial . | . . . . Average 13 | . 16 . . Influence Increases 165 | . 165 . . Destroy 0b10 Robot/C 100 | . 100 . . Destroy Leader 20 | . 20 . . Lose Combat Pursuer 45 | . 45 . . Influence Decreases 165 | . 130 35 . Entered New Map 18 | . . 18 . Time Decay 127 | . 110 17 . Lost Part 20 | . 20 . . Squads Dispatched 4 | . 4 . . Investigation 3 | . 3 . . Extermination . | . . . . Reinforcement 1 | . 1 . . Assault . | . . . . Garrison . | . . . . Intercept . | . . . . Searches Triggered . | . . . . Construction Impeded . | . . . . Haulers Reinforced . | . . . . Active Scanning Responses . | . . . . Cargo Convoy Interrupts . | . . . . Stealth | -11 -10 -10 -8 --------- Run | Yrd Mat Sub Scr Distress Signals . | . . . . Communications Jammed . | . . . . Distress Signals . | . . . . Times Spotted 33 | . 10 3 20 Peak Tracking Total 8 | . 6 2 8 Tactical Retreats 2 | . 1 . 1 Traps | -11 -10 -10 -8 ------- Run | Yrd Mat Sub Scr Traps Triggered 2 | . 2 . . Indirectly . | . . . . Trap Hack Attempts . | . . . . Triggered . | . . . . Disarmed . | . . . . Reprogrammed . | . . . . Reused . | . . . . Traps Extracted . | . . . . Installed . | . . . . Triggered . | . . . . Machines | -11 -10 -10 -8 ---------- Run | Yrd Mat Sub Scr Machines Disabled 6 | . . . 6 Max in Single Turn 2 | . . . 2 Machines Repaired . | . . . . Machines Dismantled . | . . . . Machines Sabotaged . | . . . . Overloaded Fab Kills . | . . . . Hacking | -11 -10 -10 -8 --------- Run | Yrd Mat Sub Scr Machines Accessed 7 | . . . 7 Terminals . | . . . . Fabricators . | . . . . Repair Stations . | . . . . Recycling Units . | . . . . Scanalyzers . | . . . . Garrison Access . | . . . . Total Hacks 50 | . . . 50 Successful 50 | . . . 50 Failed . | . . . . Catastrophic . | . . . . Database Lockouts . | . . . . Manual . | . . . . Terminals . | . . . . Fabricators . | . . . . Repair Stations . | . . . . Recycling Units . | . . . . Scanalyzers . | . . . . Garrison Access . | . . . . Terminal Hacks 50 | . . . 50 Record 50 | . . . 50 Fabricator Hacks . | . . . . Repair Station Hacks . | . . . . Recycling Unit Hacks . | . . . . Scanalyzer . | . . . . Garrison Access Hacks . | . . . . Unauthorized Hacks . | . . . . Terminals . | . . . . Fabricators . | . . . . Repair Stations . | . . . . Recycling Units . | . . . . Scanalyzers . | . . . . Garrison Access . | . . . . Data Cores Recovered . | . . . . Used . | . . . . Hacking Detections . | . . . . Full Trace Events . | . . . . Feedback Events . | . . . . Feedback Blocked . | . . . . Robot Schematics Acquired . | . . . . Robots Built . | . . . . Authchips . | . . . . Time . | . . . . Total Robot Build Rating . | . . . . Part Schematics Acquired . | . . . . Parts Built . | . . . . Authchips . | . . . . Time . | . . . . Total Part Build Rating . | . . . . Parts Repaired . | . . . . Time . | . . . . Parts Recycled . | . . . . Recycled Matter . | . . . . Retrieved Matter . | . . . . Retrieved Components . | . . . . Parts Scanalyzed . | . . . . Part Schematics Acquired . | . . . . Parts Damaged . | . . . . Bothacking | -11 -10 -10 -8 ------------ Run | Yrd Mat Sub Scr Used RIF Installer . | . . . . Robots Hacked . | . . . . Non-combat . | . . . . Combat . | . . . . Robot Hacks Applied . | . . . . Relay Couplers Released . | . . . . Fabnet Peak Effective % . | . . . . Robots Rewired . | . . . . Allies Hacked . | . . . . Hacks Repelled . | . . . . Allies | -11 -10 -10 -8 -------- Run | Yrd Mat Sub Scr Total Allies . | . . . . Largest Group . | . . . . Highest-Rated Group . | . . . . Highest-Rated Ally . | . . . . Total Orders . | . . . . Ally Attacks . | . . . . Total Damage . | . . . . Kills . | . . . . Allies Corrupted . | . . . . Allies Melted . | . . . . Intel | -11 -10 -10 -8 ------- Run | Yrd Mat Sub Scr Active Infowar (turns) 2049 | . . . 2049 Sensors 1469 | . . . 1469 IFF 580 | . . . 580 Robot Analysis Total . | . . . . Derelict Logs Recovered 1 | . . 1 . Drone Launches . | . . . . Drone Recoveries . | . . . . Exploration | -11 -10 -10 -8 ------------- Run | Yrd Mat Sub Scr Turns Passed 4134 | 77 347 553 3157 Spaces Moved 2669 | 42 175 325 2127 Core 18 | 5 . 2 11 Treads 999 | 37 175 275 512 Legs 1652 | . . 48 1604 Wheels . | . . . . Hover . | . . . . Flight . | . . . . Fastest Speed 50 | 50 160 120 120 Average Speed 146 | 146 160 161 143 Slowest Speed 550 | 160 160 450 550 Overloaded Moves . | . . . . Propulsion Burnouts . | . . . . Robots Hopped . | . . . . Potential Cave-ins . | . . . . Cave-ins Triggered . | . . . . Exploration Rate (%) 36 | 4 25 22 94 Regions Visited 3 Branch Regions 2 Pre-discovered Areas 1 | . . 1 . Known Exits Taken . | . . . . Unknown Exits Taken 3 | 1 1 1 . Scrap Searched 10 | . . . 10 Spaces Dug . | . . . . Terrain Destroyed 3 | . . . 3 Melee . | . . . . Projectile 3 | . . . 3 AOE . | . . . . Terrain Rammed . | . . . . Walls Destroyed . | . . . . Machines Disabled . | . . . . Actions | -11 -10 -10 -8 --------- Run | Yrd Mat Sub Scr Total 2827 | 55 206 348 2218 Wait 11 | 1 6 4 . Move 2666 | 41 174 324 2127 Hop . | . . . . Pick Up 49 | 6 4 7 32 Fast Attach 3 | . . . 3 Attach 21 | 6 2 6 7 Detach 2 | . . . 2 Swap 13 | . . 2 11 Drop 26 | . 1 1 24 Fire 36 | 1 19 4 12 Melee . | . . . . Ram . | . . . . Kick . | . . . . Crush . | . . . . Escape Stasis . | . . . . Rewire . | . . . . Trap . | . . . . Miscellaneous . | . . . . Route ------- -11/Scrapyard -10/Materials -10/Subcaves -8/Scraptown (discovered 2 exits: [*Fac x2]) History --------- Turn | Location | Event 6 | -11/Scrapyard | Discovered new exit (range 15) 78 | -11/Scrapyard | Entered Materials 79 | -10/Materials | Met a group of wandering Federalists 172 | -10/Materials | Discovered new exit (range 7) 301 | -10/Materials | Build established: Mutant 392 | -10/Materials | Core integrity fell below 50% 425 | -10/Materials | Entered Subcaves 426 | -10/Subcaves | Continued accompanying wandering Federalists (6) 426 | -10/Subcaves | Approached by a straggling Scientist 595 | -10/Subcaves | Shifting Twisted Machinery released Mak. Sword 701 | -10/Subcaves | Wandering Federalist uncovered a shortcut to Scraptown 734 | -10/Subcaves | Learned location of Zion (-7) 849 | -10/Subcaves | Build established: Scavenger-Mutant 939 | -10/Subcaves | Lost 3 parts (1p2n) 978 | -10/Subcaves | Entered Scraptown 1343 | -8/Scraptown | Visited Symbiants 1401 | -8/Scraptown | Visited Cave Peace 1429 | -8/Scraptown | Build established: Mutant 1439 | -8/Scraptown | Visited SPCMW 1477 | -8/Scraptown | Visited UFD Registry 1486 | -8/Scraptown | Visited The Evicted 1806 | -8/Scraptown | Visited Cyclists 1884 | -8/Scraptown | Visited Bundlers 2103 | -8/Scraptown | Discovered new exit (range 5) 2299 | -8/Scraptown | Registered with UFD as "Scrapwarp" 2319 | -8/Scraptown | Visited Comm Corps 2410 | -8/Scraptown | Visited Research Penetration Think Tank 2438 | -8/Scraptown | Visited Scrap Suit Storage 2491 | -8/Scraptown | Visited A0-MCA Data Center 2498 | -8/Scraptown | Given a B rating by A0-MCA 2539 | -8/Scraptown | Visited LU-1G1's Boring Crew 2557 | -8/Scraptown | Visited Infowarlord's Domain 2573 | -8/Scraptown | Found Exp. Signal Interpreter 2939 | -8/Scraptown | Visited Curators Association 2981 | -8/Scraptown | Visited Science Testing Area 3037 | -8/Scraptown | Discovered new exit (range 5) 3067 | -8/Scraptown | Found Scrap Suit 3149 | -8/Scraptown | Visited DA-N13 Charitable Foundation 3163 | -8/Scraptown | Found DCF Scrap (28 items) 3466 | -8/Scraptown | Build established: Derelict-Mutant 3614 | -8/Scraptown | Visited Chapter 10 3773 | -8/Scraptown | Met Optimus 3773 | -8/Scraptown | Accepted into 0bPrime 3870 | -8/Scraptown | Build established: Mutant 3978 | -8/Scraptown | Civil war broke out across Scraptown 4054 | -8/Scraptown | Core integrity fell below 20% 4100 | -8/Scraptown | Lost 4 allies 4135 | -8/Scraptown | Destroyed by DS-IJV(j) with Overtuned Pulse Rifle Last Messages --------------- 04033_ Autobeam Turret: "Not fair, they have Elites!" 04037_ Acquired 56 matter. 04039_ Acquired 4 matter. 04048_ Enclosure breached. 04057_ Destroyed Autobeam. 04057_ Autobeam Turret destroyed. 04065_ Enclosure breached. 04069_ YM-T0R(j): "0bPrime is tearing us apart, don't fall for it!" 04072_ Acquired data core, dynamic key expired. 04088_ Acquired 2 matter. 04094_ Acquired Mak. Transmission Jammer. 04117_ DS-IJV(j): "Stop this nonsense!" 04127_ Bolt penetrates Machine. 04129_ Penetrated by Bolt. 04130_ Bolt penetrates Machine. 04131_ Penetrated by Bolt. 04132_ Critical hit (Burn: +50). 04134_ Penetrated by Bolt. Map ----- +----------------------------------------------------+ | #########???????????# #??#"###"#????????????????? | | """"""""#???????????# #### "!" ####?????????????? | | " #???????????# #" " " "#?????????????? | | ""#???????????# ## " """#?????????????? | | ""###########?# ## " ]##?????????????? | | """"## ##!*!#?# ## " "##?????????????? | | " ""## =##|!!#?# #" % "#?????????????? | | """"## %] !%=#?# ## % "##?????????????? | | ""##= *!/[/#?# ##= !" #??????????????? | | "## !**][#?# !##%" =%""##?????????????? | | ## *=#?#!%#"! "#?????????????? | | ### ###########]###?# j## ##########?????????????? | | ### ###########*#####jj#* ############???????????? | | """ """"""""""" "jh"[!%## #???????????? | | % !%[ ## #???????????? | | ! != ## #???????????? | | =!! "## #???????????? | | *%*% ## #???????????? | | !%![% #???????????? | | """"""""""""""""""""%!== "## #???????????? | | """""""""""""""""""""%!! "## #???????????? | | # ################ %[* ## #???????????? | | ##????????#" = ###########???????????? | | X"#????????#"" "#?????????????????????? | | " "" ##????????#"" "#?????????????????????? | | "" X"#??????###"" @"###########???????????? | | " ######### #"" "## #???????????? | | "" [% #???????????? | | "" E !g= ;# ! #???????????? | | " ######### #""%! "## #???????????? | | "" ""#??????###" !/ "## #???????????? | | " "" ##????????#""*%! "###########???????????? | | X"#????????#""%=! "#?????????????????????? | | ##????????#" !!%* "#?????????????????????? | | # ################""==[[ "#?????????????????????? | | """""""""""""""""""""*[![[ #############?????????? | | """"""""""""""""""""=%!%!% #?????????? | | [*==="## #### #####?????????? | | !=*%! ## # #?????????? | | %==!*["## # """ #?????????? | | !%* ## # "#" #?????????? | | # # """ #?????????? | | """"" """"""""""" """""" ## # #?????????? | | ##### ########### ###### ## #### #####?????????? | | ?# ## "#?# ## #?????????? | | ?## ###""" """#?# #############?????????? | | ?#" "##""" """"#?# #?????????????????????? | | ?#"! !"##"!" """#?# #?????????????????????? | | ?#"! "##"""! """#?# #?????????????????????? | | ?#"! !"##""" """#?# ############??????????? | +----------------------------------------------------+ Best States ------------- Heat Dissipation 39 Energy Generation 18 Energy Capacity 250 Matter Stores 300 Matter Capacity 300 Sight Range 16 Robot Scan Range 15 Terrain Scan Density 10 Evasion (%) 55 Targeting Accuracy 8 Recoil Reduction 2 Item Schematics ----------------- None Robot Schematics ------------------ None Fabricated ------------ Nothing Repaired ---------- Nothing Alien Tech Used ----------------- None Achievements -------------- None Challenges ------------ None Game ------ Seed ScrapTripodObliterator Manual? 0 Play Time 01:03:34 Cumulative 8.7 hours Start 2025.05.13 @ 17:45:54 End 2025.05.13 @ 19:01:56 Sessions 1 Manual Loads 0 Difficulty Rogue Special Mode None Game No. 7 Rogue 7 Adventurer 0 Explorer 0 Win Type - Total 0 Types 0/0/0/0/0/0/0/0/0/0 Lore% 19 Gallery% 11 Achievement% 13 Wizard Run 0 Options --------- Layout 1 ASCII 0 Keyboard 0 Movement Mouse Keybinds 0 Fullscreen 1 Font 24/Smallcaps Map View 50x35 Zoom Use 0% Tactical HUD 1 Map Filters NONE Filters NONE Steam 1 RUN: 0639f597-0500-45d7-8eae-02af6b3143e2